bitfinex-derivatives/quotes_ETHF0:USTF0_20260315
["timestamp","ask_amount","ask_price","bid_price","bid_amount"]
[1773598414751,3.7389693,2108.5,2108.0,3.48645304]
[1773598420757,3.73334358,2109.1,2108.2,3.48645304]
[1773598420952,3.73334358,2108.9,2108.2,3.48645304]
[1773598421656,3.73752751,2108.9,2108.2,3.48645304]
[1773598426759,3.73752751,2108.9,2108.0,3.48645304]
[1773598426956,3.73334358,2108.3,2107.7,3.48645304]
[1773598438464,3.73334358,2108.3,2107.4,7.32877024]
[1773598438670,3.73098202,2108.1,2107.4,22.93862841]
[1773598439570,3.73098202,2108.1,2107.5,3.43362841]
[1773598440671,3.73098202,2108.1,2107.2,3.43362841]
[1773598440672,3.73098202,2108.0,2107.2,3.43362841]
[1773598446370,3.73098202,2108.6,2107.8,3.43362841]
[1773598446576,3.73098202,2108.6,2107.9,3.43362841]
[1773598446770,1.7994411,2108.4,2107.8,19.649]
[1773598446974,3.73098202,2108.3,2107.9,3.43362841]
[1773598453482,3.73098202,2108.7,2107.9,3.43362841]
[1773598453782,3.73098202,2108.5,2107.9,3.43362841]
[1773598455579,3.73098202,2108.5,2107.7,3.43362841]
[1773598464093,3.73098202,2108.5,2107.7,3.43362841]
[1773598464292,3.71838744,2108.3,2107.7,3.43362841]
[1773598465595,3.71838744,2108.3,2107.8,3.70587304]
[1773598471795,3.71838744,2108.7,2107.8,3.70587304]
[1773598472001,3.71838744,2108.7,2108.2,3.70587304]
[1773598472502,3.71838744,2108.7,2108.3,3.70587304]
[1773598472695,3.70861229,2108.7,2108.3,3.70587304]
[1773598478101,3.72257137,2108.9,2108.3,3.70587304]
[1773598478301,7.66382135,2109.5,2108.3,3.70587304]
[1773598478302,3.71838744,2109.0,2108.3,3.70587304]
[1773598479405,3.72290914,2109.0,2108.3,3.70587304]
[1773598510834,3.72290914,2109.0,2108.2,7.32877024]
[1773598511036,3.50904432,2108.8,2108.0,23.57848085]
[1773598511432,0.0045217,2109.0,2107.8,27.15577024]
[1773598511433,3.50904432,2108.6,2107.8,27.15577024]
[1773598511634,3.50904432,2108.4,2107.8,19.827]
[1773598512140,3.50904432,2108.4,2107.3,7.32877024]
[1773598512340,3.50904432,2108.4,2107.5,3.75348085]
[1773598518146,3.50904432,2108.4,2107.5,23.59648085]
[1773598518541,3.50904432,2108.4,2107.6,3.75348085]
[1773598519647,3.50904432,2108.4,2107.5,23.59648085]
[1773598524753,3.50904432,2108.4,2107.6,3.43826248]
[1773598525154,3.50904432,2108.4,2107.5,23.28126248]
[1773598525348,3.50904432,2108.4,2107.6,3.43826248]
[1773598527460,3.50904432,2108.4,2107.5,23.28126248]
[1773598528949,3.50904432,2108.4,2107.5,3.43826248]
[1773598529858,3.5208137,2108.3,2107.3,3.43826248]
[1773598530759,3.5208137,2108.0,2107.3,3.43826248]
[1773598531457,3.5208137,2108.0,2107.1,3.43826248]
[1773598533959,3.5208137,2108.0,2107.0,0.0044217]
[1773598534658,3.5208137,2108.0,2107.0,3.44268418]
[1773598535055,3.5208137,2107.4,2106.5,3.43826248]
[1773598535255,3.5208137,2107.6,2106.5,3.43826248]
[1773598535857,3.5208137,2107.6,2106.6,3.43826248]
[1773598536053,3.52675858,2107.6,2106.6,3.44279713]
[1773598536856,3.52675858,2107.6,2106.8,1.80179708]
[1773598537058,0.00594488,2107.6,2107.1,3.43826248]
[1773598540254,3.5208137,2108.0,2107.3,3.43826248]
[1773598541265,3.52623645,2108.0,2107.3,3.43826248]
[1773598548872,3.52623645,2108.0,2107.1,3.43826248]
[1773598551571,3.52623645,2108.0,2107.3,3.43826248]
[1773598551774,3.52623645,2108.0,2107.5,3.43826248]
[1773598557470,3.59547637,2108.4,2107.8,1.80179708]
[1773598557676,3.59547637,2108.3,2107.9,3.74685671]
[1773598558072,3.59547637,2108.3,2107.7,3.74685671]
[1773598558473,3.60107899,2108.3,2107.7,3.74685671]
[1773598563483,3.60107899,2108.3,2107.9,3.74685671]
[1773598567786,0.00560262,2108.3,2107.9,3.74685671]
[1773598569289,3.60107899,2108.3,2107.9,3.74685671]
[1773598569788,0.00560262,2108.3,2107.9,3.74685671]
[1773598570891,3.59547637,2108.7,2108.1,3.74685671]
[1773598571386,3.59547637,2108.8,2108.3,3.74685671]
[1773598571890,3.60134187,2108.8,2108.3,3.7503886]
[1773598573390,0.0058655,2108.8,2108.3,3.7503886]
[1773598573788,3.59547637,2108.9,2108.3,3.7503886]
[1773598574894,3.5999729,2108.9,2108.3,3.7503886]
[1773598575595,3.59547637,2108.7,2108.3,0.00353189]
[1773598576391,3.59547637,2108.7,2108.1,3.74685671]
[1773598577396,3.59547637,2108.7,2108.1,3.75277176]
[1773598578896,3.59547637,2108.7,2108.1,0.00591505]
[1773598582391,3.59547637,2108.7,2108.1,3.56646592]
[1773598594610,3.49120684,2108.9,2108.1,3.56646592]
[1773598594810,3.48671031,2108.7,2108.1,3.56646592]
[1773598596806,3.48671031,2108.5,2108.0,3.56055087]
[1773598598012,3.48671031,2108.5,2108.0,3.56670131]
[1773598616922,3.61461659,2108.8,2108.0,3.56670131]
[1773598617122,9.21330209,2108.7,2108.0,3.56670131]
[1773598617422,5.5986855,2108.6,2108.0,3.56670131]
[1773598617920,3.61461659,2108.7,2108.0,3.56670131]
[1773598618321,3.61911312,2108.9,2108.0,3.56670131]
[1773598618520,9.21258011,2108.8,2108.0,3.56670131]
[1773598618820,0.00449653,2108.9,2108.0,3.56670131]
[1773598619121,5.60229026,2108.9,2108.0,10.89547155]
[1773598619322,5.60229026,2108.9,2108.1,3.73691877]
[1773598620325,0.00449653,2108.9,2108.1,3.73691877]
[1773598620826,3.61911312,2108.9,2108.1,3.73691877]
[1773598627123,0.00449653,2108.9,2108.1,3.73691877]
[1773598627328,3.61461659,2109.2,2108.2,3.73691877]
[1773598628330,3.61932208,2109.2,2108.2,3.73691877]
[1773598631929,3.61932208,2109.2,2108.4,3.73691877]
[1773598649847,3.65770392,2109.6,2108.5,3.48779759]
[1773598650048,9.26215138,2109.5,2108.5,3.48779759]
[1773598650248,3.65770392,2109.5,2108.5,3.48779759]
[1773598650952,3.66198336,2109.5,2108.5,3.48779759]
[1773598652252,3.66198336,2109.5,2108.6,3.48779759]
[1773598652455,3.66198336,2109.5,2108.8,3.48779759]
[1773598656452,0.00427944,2109.5,2108.8,3.48779759]
[1773598656852,3.97719064,2110.1,2108.8,3.48779759]
[1773598657052,3.65770392,2110.0,2108.8,3.48779759]
[1773598657252,3.65770392,2109.8,2108.8,3.48779759]
[1773598657857,3.66115676,2109.8,2108.8,3.48779759]
[1773598659458,3.66115676,2109.8,2108.7,10.81656783]
[1773598659660,3.65770392,2109.6,2108.7,3.48779759]
[1773598660757,3.65770392,2109.5,2108.7,3.48779759]
[1773598664961,3.65770392,2109.5,2108.8,3.48779759]
[1773598681263,0.00345284,2109.8,2109.4,3.43773361]
[1773598681463,3.52381457,2110.2,2109.4,3.43773361]
[1773598681865,3.52381457,2110.4,2109.8,3.43773361]
[1773598682465,3.52782657,2110.4,2109.8,3.44158018]
[1773598687768,0.004012,2110.4,2110.0,3.43773361]
[1773598688564,3.52381457,2111.0,2110.3,5.23601283]
[1773598688873,3.52381457,2111.0,2110.4,3.43773361]
[1773598689671,3.52879962,2111.0,2110.4,3.43773361]
[1773598692966,0.00498505,2111.0,2110.5,3.43773361]
[1773598693170,3.52879962,2111.0,2110.5,3.43773361]
[1773598693371,0.00498505,2111.0,2110.5,3.43773361]
[1773598693877,3.52879962,2111.0,2110.5,3.43773361]
[1773598694077,3.52879962,2111.0,2110.1,3.43773361]
[1773598694973,3.52879962,2111.0,2110.3,3.43773361]
[1773598698276,0.00498505,2111.0,2110.3,3.43773361]
[1773598698572,3.52381457,2110.9,2110.3,3.43773361]
[1773598699872,0.00498505,2111.0,2110.3,3.43773361]
[1773598702779,0.00498505,2111.0,2110.5,3.40877166]
[1773598703881,3.40074522,2111.5,2110.7,3.40877166]
[1773598704880,3.40532447,2111.5,2110.7,3.40877166]
[1773598706580,3.40074522,2110.8,2110.2,3.40877166]
[1773598708679,3.40074522,2111.0,2110.3,3.40877166]
[1773598713288,3.40074522,2110.9,2110.3,3.40877166]
[1773598722988,3.40074522,2110.9,2109.9,7.56764477]
[1773598723190,3.40074522,2110.9,2110.0,3.40877166]
[1773598725291,3.40074522,2110.7,2110.0,3.40877166]
[1773598725691,3.9752087,2111.1,2110.0,3.40877166]
[1773598725892,8.94780443,2111.0,2110.0,3.40877166]
[1773598726093,8.94780443,2110.9,2110.0,3.40877166]
[1773598726397,3.40074522,2110.8,2110.0,3.40877166]
[1773598727694,3.40074522,2111.1,2110.0,3.40877166]
[1773598729295,3.9752087,2111.3,2110.1,1.79580946]
[1773598729492,5.54689714,2111.2,2110.2,3.40877166]
[1773598729692,3.40074522,2111.4,2110.2,3.40877166]
[1773598729897,3.40074522,2111.2,2110.2,3.40877166]
[1773598732897,5.50321177,2111.1,2110.2,3.40877166]
[1773598733101,3.73796532,2111.0,2110.2,3.40877166]
[1773598734199,3.73796532,2111.3,2110.2,3.40877166]
[1773598734401,3.73796532,2111.1,2110.2,3.40877166]
[1773598740102,3.73796532,2111.1,2110.3,3.75806466]
[1773598743104,3.73796532,2111.1,2109.9,18.67093]
[1773598743105,5.53377478,2111.1,2109.9,29.5208349]
[1773598743301,3.73796532,2110.9,2109.9,22.19206466]
[1773598743503,3.73796532,2110.7,2109.9,22.19206466]
[1773598745696,3.73796532,2110.7,2110.0,3.75806466]
[1773598749708,3.73796532,2110.7,2109.9,18.434]
[1773598750810,3.73796532,2110.5,2109.9,18.434]
[1773598752205,3.73796532,2110.5,2109.8,0.00384657]
[1773598752514,3.73796532,2110.3,2109.3,3.75806466]
[1773598752710,3.73796532,2110.1,2109.3,3.75806466]
[1773598752908,3.73796532,2109.9,2109.1,3.75806466]
[1773598753310,3.74329802,2109.9,2109.1,3.76359094]
[1773598765520,3.74329802,2109.9,2109.1,0.00552628]
[1773598765723,3.74329802,2109.9,2109.1,3.45206487]
[1773598775526,0.0053327,2109.9,2109.1,3.45206487]
[1773598776526,4.2120887,2110.5,2109.1,3.68908487]
[1773598776527,3.48195488,2110.2,2109.1,3.68908487]
[1773598776832,3.48195488,2110.5,2109.3,3.44653859]
[1773598777728,3.48696807,2110.5,2109.3,3.44653859]
[1773598780736,3.48696807,2110.5,2109.7,1.7963946]
[1773598781032,3.48696807,2110.5,2109.8,3.44653859]
[1773598783036,3.48696807,2110.5,2109.2,19.91277024]
[1773598783037,0.00501319,2110.5,2110.2,3.44653859]
[1773598785539,3.48195488,2111.1,2110.2,3.44653859]
[1773598786141,3.48195488,2110.9,2110.2,3.44653859]
[1773598786643,3.48570781,2110.9,2110.2,3.44653859]
[1773598791444,3.48570781,2110.9,2110.4,3.44653859]
[1773598791636,0.00375293,2110.9,2110.4,3.44653859]
[1773598792447,3.48195488,2111.1,2110.4,3.44653859]
[1773598793649,3.4864737,2111.1,2110.4,3.44653859]
[1773598794448,0.00451882,2111.1,2110.6,3.7283083]
[1773598794650,3.61316057,2111.1,2110.6,3.73253891]
[1773598795148,0.00451882,2111.1,2110.6,3.73253891]
[1773598798349,3.61316057,2111.1,2110.6,3.73253891]
[1773598800555,0.00451882,2111.1,2110.6,3.73253891]
[1773598800757,3.61316057,2111.1,2110.6,3.73253891]
[1773598801959,0.00451882,2111.1,2110.6,3.73253891]
[1773598803963,3.61316057,2111.1,2110.6,3.73253891]
[1773598804563,3.61316057,2111.1,2110.6,0.00423061]
[1773598805860,3.61316057,2111.1,2110.6,3.73253891]
[1773598806366,0.00451882,2111.1,2110.6,3.73253891]
[1773598806655,3.60864175,2111.4,2110.8,3.7283083]
[1773598807461,3.6142472,2111.4,2110.8,3.7283083]
[1773598815165,3.60864175,2111.2,2110.6,3.73253891]
[1773598815870,3.60864175,2111.2,2110.5,3.7283083]
[1773598816969,3.60864175,2111.2,2110.5,3.73405611]
[1773598820270,3.60864175,2111.0,2110.5,3.73405611]
[1773598822275,3.60864175,2111.0,2110.5,0.00574781]
[1773598822469,3.46550193,2110.8,2110.2,3.52293165]
[1773598823471,3.46550193,2110.8,2110.2,3.52729869]
[1773598824070,3.46550193,2110.8,2110.2,0.00436704]
[1773598824776,3.46550193,2110.8,2110.2,3.52729869]
[1773598825977,3.46550193,2110.6,2110.2,3.52729869]
[1773598826674,3.46550193,2110.6,2109.9,3.52293165]
[1773598826875,3.46550193,2109.9,2109.5,3.52293165]
[1773598827073,3.46550193,2109.9,2109.5,3.01006852]
[1773598827779,3.47078536,2109.9,2109.4,3.52293165]
[1773598828879,3.47078536,2109.9,2109.4,3.52726449]
[1773598844196,3.47078536,2109.9,2109.1,3.52293165]
[1773598845201,3.47078536,2109.9,2109.1,3.52903078]
[1773598863525,3.47078536,2109.9,2108.7,3.41890075]
[1773598863526,3.56133641,2109.6,2108.7,3.41890075]
[1773598863711,7.52058541,2109.7,2108.7,3.41890075]
[1773598863917,3.56133641,2109.7,2108.8,3.41890075]
[1773598864619,3.56133641,2109.7,2108.8,3.42393439]
[1773598869016,3.56133641,2109.7,2108.9,3.41890075]
[1773598873719,0.00528343,2109.9,2108.9,3.41890075]
[1773598873927,3.56133641,2109.8,2109.0,3.41890075]
[1773598875824,3.56661984,2109.9,2109.0,3.41890075]
[1773598876027,3.56133641,2110.3,2109.3,3.41890075]
[1773598876631,3.56133641,2110.3,2109.3,9.29264557]
[1773598876932,3.56133641,2110.3,2109.4,3.41890075]
[1773598877231,3.56630096,2110.3,2109.4,3.41890075]
[1773598891247,3.56630096,2110.3,2109.2,3.66457447]
[1773598891550,3.4221899,2110.2,2109.2,3.66457447]
[1773598893752,3.4221899,2110.1,2109.2,3.66457447]
[1773598902758,1.79794966,2109.9,2109.2,3.66457447]
[1773598902957,3.4221899,2109.8,2109.2,3.66457447]
[1773598906258,1.79794966,2109.9,2109.2,3.66457447]
[1773598906655,5.22013956,2109.9,2109.2,3.66457447]
[1773598907054,3.4221899,2109.9,2109.2,3.66457447]
[1773598910865,3.4221899,2110.1,2109.5,3.66457447]
[1773598919571,3.73898207,2109.9,2109.0,7.90833573]
[1773598919773,3.73898207,2109.9,2109.1,3.7908558]
[1773598923673,1.79794966,2109.8,2109.1,3.7908558]
[1773598923874,3.73898207,2109.7,2109.0,3.7908558]
[1773598940196,3.73898207,2110.1,2109.2,3.7908558]
[1773598946209,3.73898207,2110.1,2109.4,3.55580883]
[1773598981532,3.71374055,2110.1,2109.4,3.55580883]
[1773599000450,3.71374055,2110.1,2109.0,0.23774285]
[1773599000451,3.71374055,2110.1,2109.2,3.66020338]
[1773599000651,3.71374055,2110.0,2109.2,3.66020338]
[1773599011353,3.76260706,2109.8,2108.9,3.661751]
[1773599013164,3.76260706,2109.5,2108.7,3.661751]
[1773599013358,3.76260706,2109.2,2108.4,3.661751]
[1773599013557,3.76260706,2109.2,2108.2,3.661751]
[1773599014261,3.76260706,2109.2,2108.2,3.66764399]
[1773599014658,3.76260706,2108.9,2108.2,0.00589299]
[1773599015963,3.76260706,2108.9,2108.2,3.66764399]
[1773599022264,1.79713028,2108.7,2107.6,3.661751]
[1773599022474,3.76260706,2108.6,2107.6,3.661751]
[1773599023369,3.76875701,2108.6,2107.6,3.66609343]
[1773599025068,3.76875701,2108.6,2107.1,3.661751]
[1773599025069,3.76260706,2107.7,2107.1,3.661751]
[1773599025864,3.76260706,2108.1,2107.1,3.661751]
[1773599026067,3.76260706,2108.1,2107.1,3.66776849]
[1773599026771,3.76260706,2107.9,2107.1,3.66776849]
[1773599027172,3.76260706,2108.0,2107.1,3.66776849]
[1773599027372,3.76260706,2107.9,2107.1,3.66776849]
[1773599028373,3.76260706,2108.3,2107.5,3.661751]
[1773599033570,1.80736647,2108.6,2107.5,3.661751]
[1773599033571,5.31831419,2108.6,2107.5,3.661751]
[1773599034582,3.51094772,2108.5,2107.5,3.661751]
[1773599036780,3.51094772,2108.5,2107.7,3.52463992]
[1773599038887,3.51094772,2108.5,2107.9,3.52463992]
[1773599064102,3.57869211,2108.6,2107.9,3.52463992]
[1773599075508,0.00614995,2108.6,2108.2,3.4439468]
[1773599076214,3.57254216,2108.8,2108.2,3.4439468]
[1773599076713,3.57254216,2109.1,2108.2,3.4439468]
[1773599077317,3.57818546,2109.1,2108.2,3.4439468]
[1773599079213,3.57254216,2108.8,2108.2,3.4439468]
[1773599079413,3.57254216,2108.8,2108.1,3.4439468]
[1773599080214,3.57254216,2109.0,2108.4,3.4439468]
[1773599085520,3.57254216,2109.0,2108.6,3.4439468]
[1773599085728,1.89458561,2109.0,2108.6,3.44873549]
[1773599087826,3.57818546,2109.1,2108.6,3.44873549]
[1773599090121,0.0056433,2109.1,2108.6,3.44873549]
[1773599091425,0.0056433,2109.1,2108.6,20.94873549]
[1773599091622,0.0056433,2109.1,2108.7,3.4439468]
[1773599093823,3.38096269,2109.4,2108.7,3.4439468]
[1773599094023,3.38096269,2109.7,2108.7,3.4439468]
[1773599094829,3.38524076,2109.7,2108.7,3.4439468]
[1773599095025,3.73047236,2109.7,2108.7,3.4439468]
[1773599095630,3.38524076,2109.7,2108.7,3.4439468]
[1773599097330,3.72749003,2109.7,2108.7,3.4439468]
[1773599098031,3.38524076,2109.7,2108.7,3.4439468]
[1773599104531,3.38524076,2109.7,2108.8,3.50914094]
[1773599104732,3.38096269,2110.0,2109.0,3.50914094]
[1773599105132,3.38096269,2109.9,2108.9,9.39056747]
[1773599105340,3.38096269,2109.9,2109.0,17.513]
[1773599105633,1.79855436,2109.7,2108.9,3.50914094]
[1773599105838,3.38096269,2109.6,2108.7,3.50914094]
[1773599115243,3.38096269,2109.6,2108.8,3.50914094]
[1773599124249,0.00469093,2109.7,2109.1,3.30352347]
[1773599124853,3.17131322,2109.9,2109.3,3.30352347]
[1773599125249,3.17131322,2110.3,2109.3,3.30352347]
[1773599125843,3.17661723,2110.3,2109.3,3.30352347]
[1773599126053,3.17661723,2110.3,2109.5,3.30352347]
[1773599132252,3.17661723,2110.3,2109.3,9.18495]
[1773599133057,3.17661723,2110.3,2109.3,3.30352347]
[1773599148768,3.02721797,2109.9,2109.3,3.30352347]
[1773599152976,2.86182551,2109.5,2109.1,2.77745059]
[1773599154476,2.86182551,2109.7,2109.1,2.77745059]
[1773599160381,2.86182551,2109.9,2109.1,2.77745059]
[1773599167385,1.7975864,2109.8,2109.1,2.77745059]
[1773599167986,2.86182551,2109.7,2109.1,2.77745059]
[1773599168786,1.7975864,2109.6,2109.1,2.77745059]
[1773599168986,2.86182551,2109.5,2109.0,2.77745059]
[1773599169585,3.96667357,2110.0,2108.8,5.87488339]
[1773599169586,2.86182551,2109.3,2108.8,2.77745059]
[1773599178100,2.86182551,2109.3,2108.6,2.78223928]
[1773599183297,2.59901582,2109.1,2108.4,2.58617453]
[1773599184100,2.59901582,2109.1,2108.4,2.59018097]
[1773599186502,1.7975864,2109.0,2108.4,2.59018097]
[1773599186701,2.59901582,2108.7,2108.4,2.59018097]
[1773599186901,0.00489599,2108.7,2108.4,2.59018097]
[1773599188602,2.60391181,2108.7,2108.4,0.91222451]
[1773599188803,2.60391181,2108.7,2108.4,0.28385117]
[1773599189603,2.60391181,2108.7,2108.4,0.28777242]
[1773599198409,0.00489599,2108.7,2108.4,0.28777242]
[1773599199010,2.60391181,2108.7,2108.4,0.28777242]
[1773599200809,2.59901582,2109.1,2108.4,0.28777242]
[1773599201012,2.59901582,2109.1,2108.6,2.58617453]
[1773599201813,2.6026283,2109.1,2108.6,2.58617453]
[1773599209222,2.59901582,2109.3,2108.6,2.58617453]
[1773599210221,2.60484121,2109.3,2108.6,2.58617453]
[1773599225138,0.00582539,2109.3,2108.6,2.58617453]
[1773599225340,0.46896349,2109.8,2108.6,2.58617453]
[1773599225341,2.52914083,2109.5,2108.6,2.58617453]
[1773599225639,2.52914083,2109.5,2108.7,2.3373887]
[1773599226342,2.53425684,2109.5,2108.8,2.3373887]
[1773599231646,2.53425684,2109.5,2108.6,25.48027209]
[1773599231847,2.53425684,2109.5,2108.6,8.21227209]
[1773599232048,2.53425684,2109.5,2108.6,2.3373887]
[1773599233250,2.53425684,2109.5,2108.6,8.21227209]
[1773599234151,2.53425684,2109.5,2108.6,2.3373887]
[1773599257266,2.53425684,2109.5,2108.7,2.31633199]
[1773599261775,2.23568051,2109.3,2108.6,2.31633199]
[1773599274080,2.0588418,2109.1,2108.4,2.19259669]
[1773599300218,2.0588418,2109.1,2108.4,8.10220767]
[1773599300422,2.0588418,2109.1,2108.5,2.18867544]
[1773599309831,2.0588418,2109.1,2108.4,0.00392125]
[1773599310032,2.0588418,2109.1,2108.4,2.0037152]
[1773599322440,6.01449959,2109.4,2108.1,1.99979395]
[1773599322441,2.11358759,2108.6,2108.1,1.99979395]
[1773599323437,2.11358759,2108.6,2108.0,1.99979395]
[1773599323647,2.11358759,2108.4,2107.8,1.99979395]
[1773599324537,2.11358759,2108.4,2107.8,2.00538802]
[1773599327745,2.11358759,2108.4,2107.8,0.00559407]
[1773599329446,4.21569091,2109.0,2107.8,0.00559407]
[1773599329447,2.11358759,2108.2,2107.8,0.00559407]
[1773599333649,2.11358759,2108.2,2107.8,1.81332784]
[1773599337249,2.11358759,2108.2,2107.8,0.00559407]
[1773599340452,2.11358759,2108.2,2107.4,20.26278594]
[1773599340849,2.11358759,2108.2,2107.5,1.80773377]
[1773599341455,2.11358759,2108.2,2107.5,1.81243979]
[1773599355368,1.79264898,2108.4,2107.6,1.80773377]
[1773599355572,1.79264898,2108.6,2107.6,1.80773377]
[1773599378392,0.58217098,2109.0,2107.9,1.75418305]
[1773599378393,1.71937084,2108.8,2107.9,1.75418305]
[1773599387703,1.71937084,2108.8,2107.7,26.09996728]
[1773599387899,1.71937084,2108.8,2107.8,1.75418305]
[1773599388096,1.71937084,2108.8,2107.9,1.75418305]
[1773599390803,1.71937084,2108.8,2108.2,1.75418305]
[1773599395804,1.61230437,2109.1,2108.5,3.3950761]
[1773599396005,1.61230437,2108.9,2108.4,1.5958401]
[1773599396508,1.61230437,2108.9,2108.2,1.5958401]
[1773599400409,1.61230437,2109.1,2108.6,1.5958401]
[1773599404713,1.61230437,2109.1,2108.3,1.799236]
[1773599404909,1.61230437,2109.1,2108.4,1.5958401]
[1773599424430,1.45729602,2109.5,2109.1,1.58754242]
[1773599424736,1.45218001,2109.7,2109.1,1.59211327]
[1773599425934,1.45678919,2109.7,2109.1,1.59211327]
[1773599432342,1.45678919,2109.7,2109.3,1.58754242]
[1773599432544,1.45218001,2109.8,2109.3,1.58754242]
[1773599433442,1.45708941,2109.8,2109.3,1.58754242]
[1773599435140,1.45218001,2110.3,2109.7,1.58754242]
[1773599436046,1.45633586,2110.3,2109.7,1.58754242]
[1773599439643,0.00415585,2110.3,2110.0,3.38677842]
[1773599439850,1.45218001,2110.6,2110.1,1.58754242]
[1773599440746,1.45793983,2110.6,2110.1,1.58754242]
[1773599442851,1.45218001,2110.5,2109.7,1.58754242]
[1773599443052,1.45218001,2110.3,2109.7,1.58754242]
[1773599443551,1.45218001,2110.5,2109.7,1.58754242]
[1773599445748,1.45218001,2110.5,2109.9,1.58754242]
[1773599447554,0.00575982,2110.6,2110.1,1.58754242]
[1773599447754,1.45218001,2110.7,2110.1,1.58754242]
[1773599448151,1.45218001,2110.7,2109.9,1.58754242]
[1773599448654,1.45771821,2110.7,2109.9,1.58754242]
[1773599449754,1.45771821,2110.7,2110.0,1.58754242]
[1773599449950,4.2924641,2111.2,2110.6,1.58754242]
[1773599449951,1.45218001,2110.9,2110.6,1.58754242]
[1773599450154,1.45218001,2111.1,2110.6,1.58754242]
[1773599450859,1.4559767,2111.1,2110.6,1.59218121]
[1773599451059,0.00379669,2111.1,2110.6,1.59218121]
[1773599454059,0.77036179,2111.1,2110.6,1.59218121]
[1773599454965,0.00379669,2111.1,2110.6,1.59218121]
[1773599455956,0.74387882,2111.5,2110.6,1.59218121]
[1773599456152,0.23674,2111.7,2110.6,1.59218121]
[1773599456153,0.98061882,2111.7,2110.6,1.59218121]
[1773599456354,0.73355629,2111.6,2110.6,1.59218121]
[1773599456663,0.73503124,2112.0,2111.1,1.31247858]
[1773599457161,0.73903143,2112.0,2111.1,1.31247858]
[1773599460568,0.00400019,2112.0,2111.1,1.31247858]
[1773599460863,0.00400019,2112.0,2111.0,11.741]
[1773599460864,0.01,2112.5,2111.6,1.31247858]
[1773599461063,0.70839752,2112.5,2111.6,1.31247858]
[1773599461466,0.63992088,2112.4,2111.6,1.31247858]
[1773599461656,0.64579927,2112.4,2111.6,1.31247858]
[1773599463165,0.65357874,2112.1,2111.2,1.31247858]
[1773599465766,0.64052892,2112.0,2110.9,1.31247858]
[1773599468766,0.60774598,2111.9,2110.9,1.31247858]
[1773599468971,0.60774598,2111.7,2110.9,1.31247858]
[1773599470373,0.23672,2111.8,2110.9,1.31247858]
[1773599470570,0.7983134,2111.8,2110.9,1.31247858]
[1773599471466,0.5615934,2111.8,2110.9,1.31247858]
[1773599471667,0.54869616,2112.2,2110.9,1.31247858]
[1773599478177,0.48668114,2112.1,2110.9,1.31247858]
[1773599479485,3.94134656,2112.2,2110.9,1.31247858]
[1773599479684,0.46943989,2112.1,2110.9,1.31247858]
[1773599480587,0.46057655,2112.0,2110.9,1.31247858]
[1773599481193,0.48931551,2111.7,2110.9,1.31247858]
[1773599484483,0.75625693,2111.3,2110.6,1.11511995]
[1773599484682,3.94134656,2111.7,2110.6,1.11511995]
[1773599484683,0.75625693,2111.6,2110.6,1.11511995]
[1773599488495,0.78242739,2111.5,2110.6,1.11511995]
[1773599490894,0.7666504,2111.4,2110.6,1.11511995]
[1773599497602,0.7666504,2111.4,2110.1,5.87963584]
[1773599497603,1.17135437,2111.2,2110.5,1.11048116]
[1773599498600,1.17135437,2111.2,2110.5,1.11611]
[1773599500701,1.20918087,2111.0,2110.3,1.11048116]
[1773599501698,1.20918087,2111.0,2110.3,1.11571418]
[1773599502202,1.20918087,2110.8,2110.3,1.11571418]
[1773599502402,1.21515553,2110.8,2110.3,0.00523302]
[1773599502803,1.21515553,2110.8,2110.2,1.11048116]
[1773599503701,1.21515553,2110.8,2110.2,1.11617372]
[1773599504205,1.20918087,2110.7,2109.6,1.11048116]
[1773599505306,1.20918087,2110.7,2109.6,1.11561465]
[1773599512812,2.87409715,2110.5,2109.6,1.11561465]
[1773599515113,1.0772489,2110.4,2109.6,1.11561465]
[1773599520316,1.0772489,2110.7,2110.0,1.0758803]
[1773599520517,0.00597466,2110.8,2110.2,1.0758803]
[1773599520822,7.74839342,2111.3,2110.6,1.0758803]
[1773599520823,1.0772489,2111.3,2110.6,1.0758803]
[1773599521223,1.0772489,2111.6,2110.6,1.0758803]
[1773599521521,1.0772489,2111.6,2110.7,1.79684825]
[1773599521725,1.08336148,2111.6,2110.8,1.0758803]
[1773599536635,1.08336148,2111.6,2111.0,1.0758803]
[1773599537034,1.08336148,2111.6,2111.2,1.0758803]
[1773599537335,1.08336148,2111.6,2111.2,1.08081008]
[1773599537731,0.00611258,2111.6,2111.2,1.08081008]
[1773599538333,1.08336148,2111.6,2111.2,1.08081008]
[1773599538631,1.0772489,2112.0,2111.4,1.0758803]
[1773599538831,1.0772489,2112.4,2111.8,1.0758803]
[1773599539135,1.0872489,2112.5,2112.0,1.0758803]
[1773599539626,1.09258965,2112.5,2112.0,1.0758803]
[1773599543232,0.95599587,2112.3,2111.6,0.96495582]
[1773599545540,0.95599587,2112.0,2111.3,0.96495582]
[1773599551438,2.75284412,2111.4,2110.9,0.96495582]
[1773599551637,0.95599587,2111.4,2110.9,0.96495582]
[1773599552441,0.95599587,2111.4,2110.9,0.9704038]
[1773599560444,0.95599587,2111.7,2110.9,0.9704038]
[1773599564347,0.95599587,2111.1,2110.5,0.96495582]
[1773599565454,0.95599587,2111.1,2110.5,0.96906379]
[1773599567948,0.95599587,2110.9,2110.5,0.00410797]
[1773599568148,0.96184211,2110.9,2110.5,0.00410797]
[1773599568351,0.95599587,2110.7,2110.0,0.96495582]
[1773599569355,0.95599587,2110.7,2110.0,0.96900339]
[1773599572153,0.89863641,2110.9,2110.1,0.95121953]
[1773599572452,0.89279017,2111.1,2110.5,0.95121953]
[1773599573360,0.89814035,2111.1,2110.5,0.95121953]
[1773599580754,0.00535018,2111.1,2110.5,0.95121953]
[1773599580959,5.95154517,2111.8,2110.5,0.95121953]
[1773599580960,0.89279017,2111.4,2110.5,0.95121953]
[1773599581963,0.89877998,2111.4,2110.5,0.95121953]
[1773599585862,0.89279017,2111.7,2110.5,0.95121953]
[1773599586056,0.89279017,2111.8,2110.8,0.95121953]
[1773599587061,0.89659592,2111.8,2110.8,0.95121953]
[1773599599377,0.89279017,2111.6,2110.6,0.95121953]
[1773599599670,0.89279017,2111.5,2110.6,0.95121953]
[1773599600070,0.89279017,2111.5,2110.2,0.95121953]
[1773599600071,0.89279017,2111.3,2110.2,0.95121953]
[1773599600376,0.89279017,2111.1,2110.2,0.95121953]
[1773599601374,0.89279017,2111.0,2110.0,0.9552671]
[1773599618190,0.93505934,2111.2,2110.1,0.86874098]
[1773599618989,0.93505934,2111.2,2110.2,0.86874098]
[1773599621090,0.93505934,2111.2,2110.3,0.86874098]
[1773599622187,0.93505934,2111.6,2110.5,0.86874098]
[1773599622588,0.93505934,2111.5,2110.5,0.86874098]
[1773599627586,0.93505934,2111.3,2110.5,0.86874098]
[1773599630691,0.93505934,2111.6,2110.5,0.86874098]
[1773599631597,0.93505934,2111.6,2110.6,0.23686]
[1773599631800,0.93505934,2111.6,2110.7,0.86874098]
[1773599632493,0.00380575,2111.8,2110.8,0.85185333]
[1773599632494,0.85404856,2111.8,2110.8,0.85185333]
[1773599633996,0.00380575,2111.8,2111.0,0.85185333]
[1773599634798,0.00380575,2111.8,2111.0,2.64602313]